bitfinex/quotes_ETHUSD_20240602
["timestamp","ask_amount","ask_price","bid_price","bid_amount"]
[1717365750242,2.63995,3788.0,3786.7,5.12936]
[1717365750436,2.903945,3788.0,3786.8,4.362936]
[1717365750637,2.903945,3788.0,3787.1,0.41334201]
[1717365751221,2.64016,3787.7,3786.7,2.64076]
[1717365751858,2.64038,3787.4,3786.2,4.9594]
[1717365752069,2.6405,3787.2,3786.2,2.6411]
[1717365752235,2.6405,3787.2,3785.8,4.95971]
[1717365753960,2.6405,3787.2,3786.0,2.64127]
[1717365754163,2.6405,3787.2,3786.3,2.64106]
[1717365754349,7.27,3787.4,3785.9,0.55]
[1717365754350,7.27,3787.4,3786.7,2.4015]
[1717365754560,7.27,3787.4,3786.8,0.35475]
[1717365754871,7.27,3787.4,3786.9,0.55]
[1717365755327,7.27,3787.4,3787.2,2.64043]
[1717365755665,7.27,3788.0,3787.3,0.55]
[1717365755874,7.27,3788.0,3786.9,0.55]
[1717365756028,7.27,3788.0,3787.0,0.630625]
[1717365756233,7.27,3788.0,3787.1,0.55]
[1717365756454,7.27,3788.0,3787.7,2.64007]
[1717365760183,7.27,3788.0,3786.8,3.35475]
[1717365760184,7.27,3788.0,3786.8,2.64073]
[1717365761378,2.64,3787.9,3786.9,0.55]
[1717365761675,1.21871,3787.8,3786.9,0.55]
[1717365763440,1.21871,3787.8,3787.0,2.64058]
[1717365763817,7.27,3788.0,3787.6,2.64014]
[1717365764180,7.27,3788.0,3787.8,2.64005]
[1717365764387,3.78424,3790.5,3788.2,2.63971]
[1717365764388,7.27,3788.6,3788.2,2.63971]
[1717365764699,15.08911,3789.2,3788.2,2.63971]
[1717365764700,7.27,3789.1,3788.2,2.63971]
[1717365764842,7.27,3789.1,3788.3,0.55]
[1717365765046,9.732671,3789.1,3788.3,0.55]
[1717365770651,7.27,3789.1,3788.3,0.55]
[1717365771196,7.27,3789.1,3788.4,2.63959]
[1717365771399,7.27,3789.1,3788.5,0.55]
[1717365773468,7.27,3789.1,3788.9,2.63926]
[1717365773992,7.27,3789.7,3789.1,2.6391]
[1717365774159,7.27,3790.1,3789.1,2.6391]
[1717365774500,8.492758,3790.1,3789.1,2.6391]
[1717365775194,2.63854,3790.0,3789.1,2.6391]
[1717365776097,2.63879,3789.7,3788.7,2.63941]
[1717365777259,8.492758,3790.1,3788.3,2.4122]
[1717365777493,2.63899,3789.4,3788.4,0.55]
[1717365780389,2.63899,3789.4,3788.5,2.63956]
[1717365785414,2.3427,3789.6,3788.7,2.63939]
[1717365785613,2.3427,3789.6,3788.8,0.55]
[1717365786169,2.3427,3789.6,3788.7,2.63939]
[1717365786170,2.63887,3789.5,3788.7,2.63939]
[1717365786404,2.63932,3788.9,3788.0,0.00926344]
[1717365786908,7.27,3789.2,3788.0,0.00926344]
[1717365786909,2.63944,3788.7,3788.0,0.00926344]
[1717365787890,2.63944,3788.7,3788.0,0.55926344]
[1717365788074,3.05328078,3788.7,3788.0,0.55926344]
[1717365788278,3.05328078,3788.7,3788.0,0.00926344]
[1717365788715,2.63964,3788.4,3788.0,0.00926344]
[1717365793199,2.63977,3788.2,3788.0,0.00926344]
[1717365795411,9.90977,3788.2,3788.0,0.00926344]
[1717365795613,7.759597,3788.1,3788.0,0.00926344]
[1717365796432,10.533597,3788.1,3788.0,0.00926344]
[1717365800152,7.759597,3788.1,3788.0,0.00926344]
[1717365802295,4.231997,3788.1,3788.0,0.00926344]
[1717365802496,7.27,3788.6,3788.0,0.00926344]
[1717365803005,2.63923,3789.0,3788.0,0.00926344]
[1717365803006,9.90923,3789.0,3788.0,0.55926344]
[1717365803195,9.90923,3789.0,3788.1,3.20417534]
[1717365803392,9.90923,3789.0,3788.2,0.55]
[1717365804734,7.27,3790.4,3788.8,2.4025]
[1717365804932,2.3426,3790.9,3788.9,0.55]
[1717365806205,3.0,3789.9,3788.9,0.55]
[1717365806430,3.0,3789.9,3789.0,2.93445]
[1717365806617,3.0,3789.9,3789.1,0.55]
[1717365808101,3.0,3789.9,3789.2,2.63907]
[1717365808307,3.0,3790.3,3789.3,0.53925456]
[1717365811980,2.63838,3790.2,3789.0,0.29525]
[1717365812284,3.0,3790.1,3789.0,0.29525]
[1717365812441,3.0,3790.1,3789.1,0.55]
[1717365814435,2.63855,3790.0,3789.1,0.55]
[1717365814633,3.0,3789.9,3789.1,0.55]
[1717365819739,2.6387,3789.8,3789.1,0.55]
[1717365820043,0.56387,3789.7,3788.9,0.55]
[1717365823475,2.6387,3789.8,3788.9,0.55]
[1717365829588,2.6387,3789.8,3789.0,2.63919]
[1717365829785,3.0,3789.9,3789.1,0.55]
[1717365830091,3.0,3790.1,3789.1,0.55]
[1717365831247,4.290844,3790.1,3789.1,0.55]
[1717365833097,7.27,3790.3,3789.1,0.55]
[1717365833254,7.27,3790.3,3789.2,2.3768]
[1717365833459,7.27,3790.3,3789.3,0.55]
[1717365834395,7.27,3790.3,3789.5,2.63884]
[1717365834711,7.27,3790.3,3789.6,0.55]
[1717365835016,2.63816,3790.6,3789.6,0.55]
[1717365835605,3.43397861,3790.6,3789.6,0.55]
[1717365840472,2.63831,3790.3,3789.6,0.55]
[1717365840668,2.63831,3790.3,3789.5,2.63884]
[1717365840669,2.63831,3790.3,3789.2,2.3768]
[1717365840871,0.79581861,3790.6,3788.7,5.07435]
[1717365840872,2.63876,3789.7,3788.7,5.07435]
[1717365841072,0.263876,3789.6,3788.3,2.63964]
[1717365841310,2.63925,3789.0,3788.3,2.435]
[1717365841495,2.63925,3789.0,3788.0,0.00926344]
[1717365842311,2.63925,3789.0,3788.1,2.63984]
[1717365842677,2.63925,3789.0,3788.2,0.55]
[1717365845627,7.27,3789.9,3788.7,2.435]
[1717365845835,7.27,3789.9,3789.3,2.63895]
[1717365846045,7.27,3789.9,3789.5,2.435]
[1717365846331,12.45,3790.3,3789.5,2.435]
[1717365846621,12.45,3790.3,3789.6,0.55]
[1717365847534,12.45,3790.3,3789.6,3.18877]
[1717365849554,7.27,3790.4,3789.6,3.18877]
[1717365849712,7.27,3790.4,3789.6,3.865747]
[1717365854699,7.27,3790.4,3789.9,2.63856]
[1717365855466,2.63808,3790.7,3789.9,2.63856]
[1717365855649,3.0,3790.6,3789.9,2.63856]
[1717365861945,3.0,3790.6,3790.0,0.55]
[1717365862106,3.0,3790.8,3790.0,0.55]
[1717365863764,2.63883,3789.6,3788.4,2.63963]
[1717365864043,2.63904,3789.3,3788.0,0.00926344]
[1717365864204,0.263904,3789.2,3788.0,0.00926344]
[1717365864843,0.263904,3789.2,3788.1,2.6398]
[1717365865015,2.63904,3789.3,3788.1,2.6398]
[1717365865338,2.63904,3789.3,3788.2,0.55]
[1717365873465,2.63904,3789.3,3788.3,2.63969]
[1717365873669,2.63904,3789.3,3788.4,0.55]
[1717365883886,2.63921,3789.0,3788.4,0.55]
[1717365889283,2.63947,3788.7,3788.0,0.00926344]
[1717365889516,0.477,3788.4,3788.0,0.00926344]
[1717365890309,2.63984,3788.2,3788.0,0.00926344]
[1717365893516,2.63945,3788.7,3788.0,0.00926344]
[1717365893679,12.9092,3789.1,3788.1,2.4]
[1717365893876,12.9092,3789.1,3788.2,0.55]
[1717365894103,2.63931,3788.9,3788.2,0.55]
[1717365897618,2.6395,3788.6,3788.1,2.4]
[1717365897930,1.29092,3789.0,3788.0,0.00926344]
[1717365897931,2.4684,3788.9,3788.0,0.00926344]
[1717365898103,1.402932,3788.8,3788.0,0.00926344]
[1717365899330,2.63973,3788.3,3788.0,0.00926344]
[1717365903167,5.10224,3788.1,3788.0,0.00926344]
[1717365903301,12.538588,3788.1,3788.0,0.00926344]
[1717365903494,15.88331833,3788.1,3788.0,1e-08]
[1717365903742,17.23464216,3788.1,3788.0,1e-08]
[1717365903923,2.64074,3786.9,3785.9,2.4034]
[1717365906237,3.0,3787.5,3785.9,2.4034]
[1717365906238,2.64042,3787.3,3785.9,2.4034]
[1717365906397,2.64042,3787.3,3786.2,2.4953]
[1717365906592,2.64015,3787.7,3786.6,2.64084]
[1717365906936,3.0,3787.6,3786.7,0.55]
[1717365908264,2.64038,3787.4,3786.4,2.4953]
[1717365908784,3.0,3787.6,3784.8,4.33462146]
[1717365908785,2.64058,3787.1,3785.9,2.52872492]
[1717365909061,2.64071,3786.9,3785.9,2.52872492]
[1717365909503,2.64071,3786.9,3786.0,2.64127]
[1717365909615,2.64042,3787.3,3786.0,2.64127]
[1717365910138,2.64042,3787.3,3786.3,2.64106]
[1717365910463,2.64015,3787.7,3786.5,2.64095]
[1717365910673,2.64015,3787.7,3786.6,0.55]
[1717365910817,2.64015,3787.7,3786.5,0.55]
[1717365911017,2.64015,3787.7,3786.6,0.3949]
[1717365911218,2.64015,3787.7,3786.7,0.55]
[1717365911518,2.64015,3787.7,3786.8,2.6407]
[1717365911714,2.64015,3787.7,3786.9,0.55]
[1717365912435,2.64037,3787.4,3786.4,4.89502]
[1717365912677,2.64037,3787.4,3785.1,0.54748146]
[1717365912678,2.64056,3787.1,3786.0,5.04359]
[1717365912983,2.64056,3787.1,3786.0,2.64129]
[1717365913196,0.264037,3787.3,3786.0,2.64129]
[1717365913197,2.64073,3786.9,3786.0,2.64129]
[1717365916781,2.64043,3787.3,3786.3,2.64103]
[1717365916987,10.27,3787.2,3786.4,2.8624]
[1717365917654,10.27,3787.2,3786.4,0.55]
[1717365917877,10.27,3787.2,3785.9,5.38051276]
[1717365917878,2.64057,3787.1,3785.9,5.38051276]
[1717365918180,3.931613,3787.1,3786.0,0.55]
[1717365918868,3.931613,3787.1,3785.9,5.10583]
[1717365918869,2.64084,3786.7,3785.9,2.64133]
[1717365927186,3.931593,3787.1,3785.9,2.64133]
[1717365927339,3.931593,3787.1,3786.0,0.55]
[1717365927897,3.931593,3787.1,3786.1,2.64122]
[1717365928925,3.931593,3787.1,3786.2,2.4775]
[1717365929275,7.27,3787.2,3786.2,3.6225]
[1717365929399,7.27,3787.2,3786.3,0.55]
[1717365930460,7.27,3787.2,3786.6,2.64084]
[1717365930605,7.27,3787.2,3786.7,0.55]
[1717365931467,7.27,3787.2,3786.8,0.07423015]
[1717365931611,7.27,3787.7,3786.9,0.55]
[1717365931811,4.291003,3787.6,3786.7,0.55]
[1717365932564,1.291003,3787.6,3786.7,0.55]
[1717365934846,7.27,3787.7,3787.0,2.6406]
[1717365935412,2.64003,3787.9,3787.1,0.07394895]
[1717365935653,19.75176504,3788.1,3787.2,0.55]
[1717365935861,7.30176504,3788.1,3787.6,2.3536]
[1717365936073,7.27,3788.1,3787.6,2.3536]
[1717365936417,7.27,3788.1,3787.7,0.07394895]
[1717365937413,7.27,3788.6,3787.8,3.19004]
[1717365937727,7.27,3788.6,3787.8,3.26370332]
[1717365942664,7.27,3788.6,3787.8,3.19004]
[1717365943771,7.27,3788.6,3788.0,2.6399]
[1717365943942,3.0,3788.9,3788.1,0.55]
[1717365944125,4.529451,3788.9,3788.1,0.55]
[1717365945568,4.529451,3788.9,3787.6,2.64014]
[1717365946475,2.63958,3788.5,3787.6,2.64014]
[1717365946776,2.63958,3788.5,3787.7,0.07311933]
[1717365951865,2.63758,3788.5,3787.7,0.07311933]
[1717365956785,2.63758,3788.5,3787.9,2.4463]
[1717365957192,5.63935,3788.9,3788.0,3.26081131]
[1717365959008,7.27,3789.0,3788.3,2.6397]
[1717365959881,7.27,3789.0,3788.4,0.07093131]
[1717365960873,18.08906,3789.3,3788.4,0.07093131]
[1717365961104,3.0,3789.2,3788.3,2.6397]
[1717365961314,15.08906,3789.3,3788.3,2.95867]
[1717365962171,15.08906,3789.3,3788.5,2.63955]
[1717365962598,15.08906,3789.3,3788.6,0.07068204]
[1717365965192,2.63906,3789.3,3788.7,2.4694]
[1717365965435,2.63906,3789.3,3788.7,3.0350632]
[1717365965806,2.63906,3789.3,3788.8,0.07068204]
[1717365966218,2.63906,3789.3,3788.7,3.0350632]
[1717365966413,2.63906,3789.3,3788.9,0.07068204]
[1717365966591,2.63906,3789.3,3788.7,3.0350632]
[1717365967086,2.63906,3789.3,3788.8,0.07068204]
[1717365967291,2.63906,3789.3,3788.7,3.0350632]
[1717365967604,2.63906,3789.3,3788.8,0.07068204]
[1717365968107,2.63906,3789.3,3788.9,0.07068204]
[1717365968313,2.63906,3789.3,3788.7,3.0350632]
[1717365968540,2.63906,3789.3,3788.8,0.07068204]
[1717365968993,2.63906,3789.3,3788.7,3.0350632]
[1717365969195,2.63906,3789.3,3788.9,0.07068204]
[1717365969395,2.63906,3789.3,3788.7,3.0350632]
[1717365969630,2.63906,3789.3,3789.0,0.07068204]
[1717365969833,3.250666,3789.3,3788.3,2.77157]
[1717365970036,0.477,3789.0,3788.1,2.63978]
[1717365970901,2.63921,3789.1,3787.7,2.64005]
[1717365970902,7.27,3789.1,3787.7,2.64005]
[1717365971236,0.477,3788.6,3787.7,2.64005]
[1717365972366,3.11655,3788.6,3787.7,2.64005]
[1717365975642,2.63955,3788.6,3787.7,2.64005]
[1717365975839,2.63955,3788.6,3787.8,0.477]
[1717365976071,5.63924,3789.0,3788.2,0.477]
[1717365976421,5.63924,3789.0,3788.3,0.07045542]
[1717365976968,5.63924,3789.0,3788.0,2.63989]
[1717365977149,5.63924,3789.0,3788.1,0.55]
[1717365977665,5.63924,3789.0,3788.0,2.63989]
[1717365977666,3.11643,3788.7,3788.2,0.07065028]
[1717365978075,3.11643,3788.7,3788.0,2.63989]
[1717365978271,3.11643,3788.7,3788.3,0.07065028]
[1717365978433,2.63943,3788.7,3788.0,2.63989]
[1717365978945,2.63943,3788.7,3788.1,0.07065028]
[1717365980176,2.63958,3788.5,3788.1,0.07065028]
[1717365980513,2.63958,3788.5,3787.7,2.64012]
[1717365981721,3.11658,3788.5,3787.7,2.64012]
[1717365985447,3.11658,3788.5,3787.4,3.11733]
[1717365985448,0.477,3788.5,3787.4,3.11733]
[1717365985731,0.611643,3788.7,3786.8,2.8685]
[1717365985732,5.57136,3788.0,3786.8,2.8685]
[1717365986305,5.09436,3788.0,3787.0,2.64057]
[1717365986506,0.477,3787.9,3787.0,2.64057]
[1717365986831,0.477,3787.9,3787.1,0.07085696]
[1717365988832,2.64006,3787.8,3787.1,0.07085696]
[1717365992342,2.64006,3787.8,3787.1,0.62884966]
[1717365996333,2.64006,3787.8,3787.1,0.07085696]
[1717366017324,2.9314,3788.0,3787.2,2.64046]
[1717366017661,2.9314,3788.0,3787.3,0.07136734]
[1717366018000,2.9314,3788.0,3787.2,2.64046]
[1717366020280,0.477,3788.0,3787.5,2.64026]
[1717366020481,7.27,3788.1,3787.8,0.477]
[1717366020681,7.27,3788.1,3788.0,3.11691]
[1717366020881,7.27,3788.1,3788.0,3.66691]
[1717366021181,7.27,3788.1,3788.0,3.73826373]
[1717366021391,7.27,3788.1,3788.0,4.1120901]
[1717366028005,7.27,3788.1,3788.0,6.4219901]
[1717366028410,2.4617,3789.5,3788.7,2.63937]
[1717366028709,2.4617,3789.5,3788.8,0.477]
[1717366029073,2.4617,3789.5,3788.9,0.07026133]
[1717366029282,2.4617,3789.5,3788.8,0.477]
[1717366032021,2.4617,3789.5,3788.7,2.63937]
[1717366032321,2.4617,3789.5,3787.1,3.32148146]
[1717366032322,2.63957,3788.5,3787.4,2.64029]
[1717366032556,2.442,3788.1,3786.8,2.3213]
[1717366032677,2.7339,3788.1,3787.1,0.477]
[1717366032878,2.7339,3788.1,3787.3,0.477]
[1717366034285,2.442,3788.1,3787.3,3.11738]
[1717366034511,2.442,3788.1,3787.5,0.477]
[1717366034820,2.442,3788.1,3787.3,3.11738]
[1717366035018,2.442,3788.1,3787.4,0.55]
[1717366036826,2.442,3788.1,3787.5,0.477]
[1717366038321,2.442,3788.1,3787.6,0.06108541]
[1717366038484,2.997879,3788.1,3787.6,0.06108541]
[1717366038680,2.997879,3788.1,3787.4,0.55]
[1717366038926,2.997879,3788.1,3787.7,0.06108994]
[1717366039107,2.997879,3788.1,3787.4,0.55]
[1717366039311,2.997879,3788.1,3787.8,0.06108994]
[1717366039518,0.5637669,3788.0,3787.4,0.55]
[1717366039709,2.442,3788.1,3787.9,0.06108994]
[1717366039909,2.442,3788.1,3787.4,0.55]
[1717366040360,2.442,3788.1,3787.5,0.06108994]
[1717366040831,2.442,3788.1,3787.5,0.53808994]
[1717366041561,2.442,3788.1,3787.5,0.06108994]
[1717366041743,2.442,3788.1,3787.5,0.53808994]
[1717366044966,2.442,3788.1,3787.5,0.06108994]
[1717366045113,2.997879,3788.1,3787.5,0.06108994]
[1717366046619,2.63994,3788.0,3787.5,0.06108994]
[1717366047075,2.63994,3788.0,3787.3,0.477]
[1717366047280,2.63994,3788.0,3787.6,0.0616602]
[1717366047563,2.63994,3788.0,3787.3,0.477]
[1717366047724,2.63994,3788.0,3787.4,0.0616602]
[1717366047922,3.2037219,3788.0,3787.4,0.0616602]
[1717366048117,2.63969,3788.4,3787.9,0.477]
[1717366048364,7.27,3788.5,3787.5,2.3951]
[1717366048365,7.27,3788.5,3788.3,0.477]
[1717366048669,2.63942,3788.8,3788.3,0.477]
[1717366050863,2.63942,3788.8,3788.1,0.477]
[1717366051160,2.63942,3788.8,3788.2,0.55]
[1717366057771,2.63942,3788.8,3788.3,0.5381306]
[1717366058100,2.63942,3788.8,3788.3,0.477]
[1717366058611,2.63942,3788.8,3788.4,0.0611306]
[1717366059817,2.63942,3788.8,3788.3,0.477]
[1717366060228,9.90915,3789.1,3788.3,1.034434]
[1717366060709,9.90915,3789.1,3788.4,0.06110394]
[1717366063506,2.63915,3789.1,3788.4,0.06110394]
[1717366063884,2.63915,3789.1,3788.3,1.034434]
[1717366066710,2.63915,3789.1,3788.3,3.674124]
[1717366066910,3.0,3789.3,3788.5,3.11656]
[1717366067116,7.27,3789.5,3788.7,3.11636]
[1717366076309,7.27,3789.5,3788.8,2.2567]
[1717366076642,7.27,3789.5,3788.9,0.06065594]
[1717366078012,5.63873,3789.7,3788.9,0.06065594]
[1717366078208,5.63873,3789.7,3788.8,2.2567]
[1717366080646,3.0,3789.7,3788.9,2.63926]
[1717366080829,7.27,3789.9,3788.9,2.63926]
[1717366081142,7.27,3789.9,3789.3,0.477]
[1717366081347,15.08852,3790.0,3789.3,0.477]
[1717366081348,2.63852,3790.0,3789.3,0.477]
[1717366082124,3.0,3789.9,3789.3,0.477]
[1717366082442,3.0,3789.9,3789.4,0.060111]
[1717366082825,3.0,3789.9,3789.3,0.477]
[1717366083026,3.0,3789.9,3789.5,0.060111]
[1717366083331,3.0,3789.9,3788.9,0.477]
[1717366083332,4.92397,3789.8,3788.9,0.477]
[1717366083538,4.92397,3789.8,3789.6,0.060111]
[1717366083734,4.92397,3789.8,3788.9,0.477]
[1717366084107,4.92397,3789.8,3789.0,0.06002053]
[1717366092457,0.477,3789.7,3789.0,0.06002053]
[1717366092794,0.840097,3789.6,3788.9,2.63923]
[1717366092957,0.477,3789.5,3788.9,2.63923]
[1717366093257,0.477,3789.5,3789.0,0.06002958]
[1717366093759,2.63894,3789.4,3789.0,0.06002958]
[1717366094131,2.63894,3789.4,3788.6,2.63948]
[1717366094337,3.0345437,3789.4,3788.6,2.63948]
[1717366094523,3.0345437,3789.4,3788.7,0.06002958]
[1717366095833,2.63913,3789.2,3788.7,0.06002958]
[1717366096154,2.63913,3789.2,3788.2,2.63972]
[1717366096360,4.93493,3789.2,3788.8,0.06002958]
[1717366096562,0.35117337,3789.1,3788.3,0.477]
[1717366097074,2.63923,3789.0,3788.4,0.06002958]
[1717366099138,2.63923,3789.0,3788.2,2.63972]
[1717366102068,2.63923,3789.0,3788.3,0.06002958]
[1717366105574,2.2958,3788.7,3788.3,0.06002958]
[1717366106073,2.2958,3788.7,3787.9,0.477]
[1717366106374,2.2958,3788.7,3788.4,0.06002958]
[1717366106578,2.2958,3788.7,3787.9,0.477]
[1717366106792,2.2958,3788.7,3788.5,0.06002958]
[1717366106934,0.59885003,3788.6,3787.9,0.477]
[1717366107141,2.2958,3788.7,3788.6,0.06002958]
[1717366107334,2.2958,3788.7,3787.9,0.477]
[1717366107335,2.63938,3788.8,3788.0,2.6399]
[1717366107646,2.63938,3788.8,3788.6,0.06002958]
[1717366107848,2.63938,3788.8,3788.1,0.477]
[1717366108257,2.63938,3788.8,3788.2,0.06033275]
[1717366113363,2.63795385,3788.8,3788.2,0.06033275]
[1717366113777,2.63795385,3788.8,3788.0,5.4826]
[1717366114260,2.63795385,3788.8,3788.1,0.06033275]
[1717366119204,2.63795385,3788.8,3788.1,0.61462602]
[1717366119502,2.63795385,3788.8,3788.2,0.477]
[1717366120005,2.63795385,3788.8,3788.3,0.06033275]
[1717366120378,2.63795385,3788.8,3788.2,0.477]
[1717366120770,2.63795385,3788.8,3788.3,0.06033275]
[1717366120987,2.63795385,3788.8,3788.1,1.03129327]
[1717366121195,2.63795385,3788.8,3788.4,0.06033275]
[1717366121395,2.63795385,3788.8,3788.1,0.477]
[1717366121581,2.63795385,3788.8,3788.5,0.06033275]
[1717366121896,2.63795385,3788.8,3788.3,0.477]
[1717366122107,2.63795385,3788.8,3788.6,0.06033275]
[1717366122268,2.63795385,3788.8,3788.1,0.477]
[1717366122606,2.63795385,3788.8,3788.2,0.06029655]
[1717366126479,2.63795385,3788.8,3788.3,0.06029655]
[1717366126705,2.63795385,3788.8,3788.1,0.477]
[1717366127070,2.63795385,3788.8,3788.4,0.06029655]
[1717366127385,2.63795385,3788.8,3788.1,0.477]
[1717366127711,2.63795385,3788.8,3788.1,0.78869]
[1717366128005,2.63795385,3788.8,3788.2,0.06029655]
[1717366133520,2.63795385,3788.8,3788.0,2.6399]
[1717366133879,2.63795385,3788.8,3788.3,0.06029655]
[1717366134083,2.63795385,3788.8,3788.0,2.6399]
[1717366134428,3.0675753,3788.8,3788.1,0.06029655]
[1717366136021,2.63954,3788.6,3788.1,0.06029655]
[1717366136178,2.4186,3788.5,3788.1,0.06029655]
[1717366136513,2.4186,3788.5,3787.8,0.477]
[1717366136694,2.4186,3788.5,3788.2,0.06030558]
[1717366136890,2.4186,3788.5,3787.8,0.477]
[1717366137095,2.4186,3788.5,3788.3,0.06030558]
[1717366137321,3.01507615,3788.5,3788.4,0.06030558]
[1717366137703,3.01507615,3788.5,3787.8,0.477]
[1717366137895,2.4186,3788.5,3787.8,0.477]
[1717366138091,2.4186,3788.5,3787.9,0.06030558]
[1717366149144,9.9093,3788.9,3788.3,0.477]
[1717366149455,9.9093,3788.9,3788.4,0.06034178]
[1717366149858,2.6391,3789.2,3788.4,0.06034178]
[1717366150011,7.27,3789.4,3788.8,2.8219]
[1717366154219,22.0516,3789.8,3788.8,2.8219]
[1717366154419,22.0516,3789.8,3789.0,0.477]
[1717366154670,9.6016,3789.8,3789.0,0.477]
[1717366155419,9.6016,3789.8,3789.0,1.023127]
[1717366156279,7.27,3789.8,3789.2,0.477]
[1717366156646,7.27,3789.8,3789.3,0.05974915]
[1717366157169,7.27,3789.8,3789.2,0.477]
[1717366157362,7.27,3789.8,3789.4,0.05974915]
[1717366157662,7.27,3789.8,3789.2,0.8432337]
[1717366157663,7.27,3789.8,3789.5,0.05974915]
[1717366158024,7.27,3789.8,3789.2,0.8432337]
[1717366158355,7.27,3789.8,3789.3,0.05974915]
[1717366158669,7.27,3789.8,3789.2,0.8432337]
[1717366158875,7.27,3789.8,3789.4,0.05974915]
[1717366159027,7.27,3789.8,3789.1,0.477]
[1717366159227,7.27,3789.8,3789.2,0.05974915]
[1717366160049,2.63865,3789.9,3789.2,0.05974915]
[1717366163785,2.63878,3789.7,3789.2,0.05974915]
[1717366164106,2.63878,3789.7,3788.8,2.3449]
[1717366164283,2.63878,3789.7,3789.3,0.05976724]
[1717366164612,0.311578,3789.6,3789.4,0.05976724]
[1717366164811,0.311578,3789.6,3788.8,2.3449]
[1717366165006,2.63878,3789.7,3788.9,0.05976724]
[1717366171841,2.63878,3789.7,3788.9,0.53676724]
[1717366172401,2.63878,3789.7,3788.9,0.05976724]
[1717366187622,2.63878,3789.7,3789.1,0.477]
[1717366187848,2.63878,3789.7,3789.2,0.05997076]
[1717366188223,2.63878,3789.7,3788.9,3.11622]
[1717366188419,2.63878,3789.7,3789.0,0.60607824]
[1717366190457,2.63878,3789.7,3789.0,0.05996624]
[1717366201911,5.63853,3790.0,3789.1,2.63913]
[1717366207769,5.63853,3790.0,3789.4,0.477]
[1717366207770,2.63853,3790.0,3789.4,0.477]
[1717366208027,2.63853,3790.0,3789.5,0.544765]
[1717366208181,2.63853,3790.0,3789.3,2.63895]
[1717366208512,2.63853,3790.0,3789.3,3.11595]
[1717366208707,2.63853,3790.0,3789.3,2.63895]
[1717366208917,2.63853,3790.0,3789.0,3.1162]
[1717366209469,2.63873,3789.7,3789.0,2.6392]
[1717366209672,2.63873,3789.7,3789.1,0.05960138]
[1717366213016,2.63895,3789.4,3789.1,0.05960138]
[1717366213325,2.63895,3789.4,3787.7,2.2547]
[1717366213326,4.9146,3788.5,3787.7,2.2547]
[1717366213486,5.3916,3788.5,3787.7,2.2547]
[1717366215887,4.9146,3788.5,3787.7,2.2547]
[1717366216926,4.9146,3788.5,3787.6,3.11718]
[1717366217793,4.9146,3788.5,3787.6,2.64018]
[1717366218006,4.9146,3788.5,3787.6,3.11718]
[1717366218213,3.11683,3788.2,3787.7,0.05223528]
[1717366218413,3.11683,3788.2,3787.2,3.11743]
[1717366218704,0.477,3787.8,3787.3,0.05223528]
[1717366218903,2.63998,3787.9,3787.3,0.05223528]
[1717366219088,2.951678,3787.9,3787.0,2.2591]
[1717366219407,2.951678,3787.9,3787.1,0.52923528]
[1717366219805,2.64023,3787.6,3787.1,0.05223528]
[1717366220121,2.64023,3787.6,3786.7,0.477]
[1717366220434,2.64023,3787.6,3786.9,0.477]
[1717366220741,2.64023,3787.6,3786.6,2.2591]
[1717366220742,2.64023,3787.6,3787.0,0.05299093]
[1717366220909,3.1666228,3787.6,3787.0,0.05299093]
[1717366221231,3.1666228,3787.6,3786.7,0.477]
[1717366221406,3.1666228,3787.6,3786.8,0.05312675]
[1717366221594,3.1666228,3787.6,3786.7,0.477]
[1717366221794,2.64023,3787.6,3786.8,0.05312675]
[1717366222009,2.64023,3787.6,3786.7,0.477]
[1717366222194,2.64023,3787.6,3786.8,0.05312675]
[1717366222394,2.64023,3787.6,3786.7,0.477]
[1717366222628,2.64023,3787.6,3786.8,0.05312675]
[1717366222791,2.64023,3787.6,3786.7,0.477]
[1717366222991,2.64023,3787.6,3786.8,0.05312675]
[1717366223191,2.64023,3787.6,3786.7,0.477]
[1717366223394,2.64023,3787.6,3786.8,0.05312675]
[1717366223633,2.64023,3787.6,3786.7,0.477]
[1717366223797,2.64023,3787.6,3786.8,0.05312675]
[1717366224002,3.2143228,3787.6,3786.6,2.7361]
[1717366224232,3.2143228,3787.6,3786.7,0.05407262]
[1717366226368,3.6913228,3787.6,3786.7,0.05407262]
[1717366227230,2.64039,3787.4,3786.7,0.05407262]
[1717366227429,2.64039,3787.4,3786.5,0.477]
[1717366227657,2.64039,3787.4,3786.6,0.05415413]
[1717366229128,2.64039,3787.4,3786.7,0.82170823]
[1717366229673,2.64039,3787.4,3786.8,0.05416771]
[1717366231662,2.64039,3787.4,3786.8,0.07689854]
[1717366232247,2.64008,3787.8,3786.9,0.477]
[1717366232475,2.64008,3787.8,3787.0,0.6783103]
[1717366234564,0.477,3787.7,3787.0,0.07683062]
[1717366234935,0.477,3787.7,3786.7,2.98549823]
[1717366235137,0.477,3787.7,3787.1,0.07678989]
[1717366235338,0.477,3787.7,3786.7,2.98549823]
[1717366235590,0.477,3787.7,3787.2,0.07678989]
[1717366235735,0.477,3787.7,3786.7,2.98549823]
[1717366235927,0.477,3787.7,3787.3,0.07678989]
[1717366236132,0.477,3787.7,3786.7,2.98549823]
[1717366236476,0.477,3787.7,3786.8,0.07678989]